[Event "FIDE Womens Grand Swiss 2021"]
[Site "Riga"]
[Date "2021.11.07"]
[Round "11.12"]
[White "Kashlinskaya, Alina"]
[Black "Vaishali R"]
[Result "1-0"]
[ECO "D87"]
[WhiteElo "2493"]
[BlackElo "2419"]
[Annotator "RC"]
[PlyCount "85"]
[EventDate "2021.10.27"]
[EventType "swiss"]
[EventCountry "LAT"]
[Tiebreak "Cut1 Buchholz+Sonneborn-Berger (Swiss)"]
[SourceTitle "playchess.com"]
[Source "ChessBase"]
[SourceQuality "1"]
[TimeControl "40/6000+30:20/3000+30:900+30"]

1. d4 {[%emt 0:10:03]} Nf6 {[%emt 0:10:16]} 2. c4 {[%emt 0:00:07]} g6 {[%emt 0:
00:07]} 3. Nc3 {[%emt 0:00:06]} d5 {[%emt 0:00:07]} 4. cxd5 {[%emt 0:00:06]}
Nxd5 {[%emt 0:00:03]} 5. e4 {[%emt 0:00:08]} Nxc3 {[%emt 0:00:05]} 6. bxc3 {
[%emt 0:00:05]} Bg7 {[%emt 0:00:04]} 7. Bc4 {[%emt 0:00:11]} c5 {[%emt 0:00:16]
} 8. Ne2 {[%emt 0:00:10]} O-O {[%emt 0:00:14]} 9. h4 {[%emt 0:01:01]} cxd4 {
[%emt 0:00:56]} 10. cxd4 {[%emt 0:00:16]} Nc6 {[%emt 0:00:16]} 11. Be3 {
[%emt 0:03:12]} Qa5+ {[%emt 0:02:06]} 12. Kf1 {[%emt 0:00:11]} b5 {[%emt 0:27:
15]} 13. Bb3 {[%emt 0:16:47]} Bb7 {[%emt 0:04:37]} 14. h5 {[%emt 0:02:17]} Rfd8
{[%emt 0:01:43]} 15. Rc1 {[%emt 0:06:51]} e6 {[%emt 0:10:56]} 16. hxg6 {
[%emt 0:12:45]} hxg6 {[%emt 0:01:32]} 17. Bh6 {[%emt 0:04:43]} Bxh6 {[%emt 0:
15:00]} 18. Rxh6 {[%emt 0:00:12]} Kg7 {[%emt 0:00:09]} 19. Rh3 {[%emt 0:01:33]}
Qb4 {[%emt 0:04:55]} 20. Rxc6 {[%emt 0:04:18]} Bxc6 {[%emt 0:00:02]} 21. Qc1 {
[%emt 0:00:10]} Rh8 {[%emt 0:00:04]} 22. Qxc6 {[%emt 0:01:18]} a5 {[%emt 0:05:
36]} 23. Bxe6 {[%emt 0:11:55]} Ra6 {[%emt 0:05:54]} 24. Qxa6 {[%emt 0:03:25]}
Qb1+ {[%emt 0:00:02]} 25. Nc1 {[%emt 0:00:05]} Qxc1+ {[%emt 0:00:04]} 26. Ke2 {
[%emt 0:00:03]} Qc2+ {[%emt 0:00:28]} 27. Kf3 {[%emt 0:06:09]} Qd3+ {[%emt 0:
09:45]} 28. Kf4 {[%emt 0:00:40]} Qxd4 {[%emt 0:00:15]} 29. Rxh8 {[%emt 0:00:37]
} Qxf2+ {[%emt 0:00:22]} 30. Ke5 {[%emt 0:01:11]} Qg3+ {[%emt 0:09:58]} 31. Kd5
{[%emt 0:02:52]} Qd3+ {[%emt 0:01:19]} 32. Kc5 {[%emt 0:02:15]} Qc3+ {[%emt 0:
01:27]} 33. Kxb5 {[%emt 0:01:15]} fxe6 {[%emt 0:00:35]} 34. Qc8 {[%emt 0:05:39]
} Qd3+ {[%emt 0:00:11]} 35. Kxa5 {[%emt 0:00:34]} Qa3+ {[%emt 0:00:29]} 36. Kb6
{[%emt 0:00:17]} Qb2+ {[%emt 0:00:23]} 37. Kc6 {[%emt 0:03:43]} Qc3+ {[%emt 0:
00:23]} 38. Kd7 {[%emt 0:00:13]} Qd4+ {[%emt 0:00:13]} 39. Ke8 {[%emt 0:02:46]}
Qf6 {[%emt 0:00:16]} 40. Rh3 {[%emt 0:03:18]} Qf7+ {[%emt 0:00:16]} 41. Kd8 {
[%emt 0:50:05]} Qf6+ {[%emt 0:50:19]} 42. Kd7 {[%emt 0:00:40]} Qd4+ {[%emt 0:
00:13]} 43. Ke8 {[%emt 0:00:17]} 1-0

[Event "FIDE Womens Grand Swiss 2021"]
[Site "Riga"]
[Date "2021.11.07"]
[Round "11.13"]
[White "Shuvalova, Polina"]
[Black "Melia, Salome"]
[Result "1-0"]
[ECO "B31"]
[WhiteElo "2509"]
[BlackElo "2371"]
[Annotator "RC"]
[PlyCount "53"]
[EventDate "2021.10.27"]
[EventType "swiss"]
[EventCountry "LAT"]
[Tiebreak "Cut1 Buchholz+Sonneborn-Berger (Swiss)"]
[SourceTitle "playchess.com"]
[Source "ChessBase"]
[SourceQuality "1"]
[TimeControl "40/6000+30:20/3000+30:900+30"]

1. e4 {[%emt 0:10:03]} c5 {[%emt 0:10:32]} 2. Nf3 {[%emt 0:00:04]} Nc6 {
[%emt 0:00:05]} 3. Bb5 {[%emt 0:00:06]} g6 {[%emt 0:00:22]} 4. O-O {[%emt 0:00:
17]} Bg7 {[%emt 0:00:07]} 5. c3 {[%emt 0:00:20]} e5 {[%emt 0:06:34]} 6. d4 {
[%emt 0:00:15]} cxd4 {[%emt 0:00:26]} 7. cxd4 {[%emt 0:00:05]} exd4 {[%emt 0:
00:14]} 8. Bf4 {[%emt 0:00:06]} a6 {[%emt 0:07:17]} 9. Bc4 {[%emt 0:00:20]} d6
{[%emt 0:07:13]} 10. Qb3 {[%emt 0:26:13]} Qd7 {[%emt 0:19:57]} 11. Nbd2 {
[%emt 0:01:52]} Nh6 {[%emt 0:05:36]} 12. Bd5 {[%emt 0:02:13]} O-O {[%emt 0:04:
23]} 13. Nc4 {[%emt 0:00:52]} Qd8 {[%emt 0:01:45]} 14. Nxd6 {[%emt 0:05:31]}
Na5 {[%emt 0:02:07]} 15. Qa3 {[%emt 0:02:56]} Be6 {[%emt 0:02:54]} 16. Rac1 {
[%emt 0:05:43]} Bxd5 {[%emt 0:04:35]} 17. exd5 {[%emt 0:00:08]} b5 {[%emt 0:00:
04]} 18. b3 {[%emt 0:00:48]} Ra7 {[%emt 0:07:53]} 19. Rc8 {[%emt 0:12:41]} Qf6
{[%emt 0:11:43]} 20. Bg5 {[%emt 0:09:13]} Qxd6 {[%emt 0:00:17]} 21. Qxd6 {
[%emt 0:00:32]} Rxc8 {[%emt 0:00:03]} 22. Qb6 {[%emt 0:00:20]} Rd7 {[%emt 0:00:
18]} 23. Qxa5 {[%emt 0:02:06]} Rxd5 {[%emt 0:00:07]} 24. Qxa6 {[%emt 0:00:09]}
Rdc5 {[%emt 0:00:57]} 25. Bxh6 {[%emt 0:00:30]} Bxh6 {[%emt 0:00:06]} 26. Nxd4
{[%emt 0:00:07]} b4 {[%emt 0:00:34]} 27. g3 {[%emt 0:00:47]} 1-0

[Event "FIDE Womens Grand Swiss 2021"]
[Site "Riga"]
[Date "2021.11.07"]
[Round "11.14"]
[White "Atalik, Ekaterina"]
[Black "Garifullina, Leya"]
[Result "1-0"]
[ECO "E06"]
[WhiteElo "2420"]
[BlackElo "2409"]
[Annotator "NA RC"]
[PlyCount "127"]
[EventDate "2021.10.27"]
[EventType "swiss"]
[EventCountry "LAT"]
[Tiebreak "Cut1 Buchholz+Sonneborn-Berger (Swiss)"]
[SourceTitle "playchess.com"]
[Source "ChessBase"]
[SourceQuality "1"]
[TimeControl "40/6000+30:20/3000+30:900+30"]

1. d4 {[%emt 0:10:04]} Nf6 {[%emt 0:10:08]} 2. Nf3 {[%emt 0:00:18]} d5 {
[%emt 0:00:10]} 3. g3 {[%emt 0:00:37]} e6 {[%emt 0:00:06]} 4. Bg2 {[%emt 0:00:
15]} Be7 {[%emt 0:00:08]} 5. c4 {[%emt 0:00:14]} O-O {[%emt 0:00:07]} 6. Nc3 {
[%emt 0:00:21]} dxc4 {[%emt 0:00:36]} 7. Ne5 {[%emt 0:00:19]} c5 {[%emt 0:00:
32]} 8. dxc5 {[%emt 0:00:18]} Qxd1+ {[%emt 0:00:06]} 9. Nxd1 {[%emt 0:00:04]}
Bxc5 {[%emt 0:00:06]} 10. Nxc4 {[%emt 0:00:24]} Nc6 {[%emt 0:01:10]} 11. Be3 {
[%emt 0:00:52]} Bb4+ {[%emt 0:00:45]} 12. Nc3 {[%emt 0:01:53]} Bd7 {[%emt 0:07:
46]} 13. O-O-O {[%emt 0:04:45]} Rad8 {[%emt 0:10:44]} 14. Nd6 {[%emt 0:05:57]}
Bc8 {[%emt 0:01:04]} 15. Nxc8 {[%emt 0:01:52]} Rxc8 {[%emt 0:00:04]} 16. h3 {
[%emt 0:11:10]} b6 {[%emt 0:04:55]} 17. Kb1 {[%emt 0:02:49]} Bxc3 {[%emt 0:05:
06]} 18. bxc3 {[%emt 0:00:09]} e5 {[%emt 0:00:56]} 19. g4 {[%emt 0:02:58]} h6 {
[%emt 0:00:50]} 20. Bxh6 {[%emt 0:05:33]} gxh6 {[%emt 0:05:44]} 21. Rd6 {
[%emt 0:00:09]} Ne7 {[%emt 0:03:45]} 22. Rxf6 {[%emt 0:00:07]} Kg7 {[%emt 0:05:
17]} 23. Rf3 {[%emt 0:01:19]} Nd5 {[%emt 0:01:36]} 24. Rc1 {[%emt 0:01:27]} Rc5
{[%emt 0:01:27]} 25. c4 {[%emt 0:02:00]} Nf4 {[%emt 0:03:15]} 26. Bf1 {[%emt 0:
00:29]} Rd8 {[%emt 0:01:43]} 27. Rfc3 {[%emt 0:00:55]} Ne6 {[%emt 0:05:02]} 28.
e3 {[%emt 0:01:08]} Ng5 {[%emt 0:01:45]} 29. Bg2 {[%emt 0:01:47]} e4 {[%emt 0:
02:01]} 30. Kc2 {[%emt 0:07:31]} Rd6 {[%emt 0:02:42]} 31. Kb3 {[%emt 0:03:03]}
b5 {[%emt 0:05:19]} 32. Kb4 {[%emt 0:14:00]} Rxc4+ {[%emt 0:00:13]} 33. Rxc4 {
[%emt 0:00:05]} bxc4 {[%emt 0:00:06]} 34. h4 {[%emt 0:02:54]} Nf3 {[%emt 0:00:
09]} 35. Bxf3 {[%emt 0:01:06]} exf3 {[%emt 0:00:04]} 36. Rc2 {[%emt 0:06:48]}
c3 {[%emt 0:03:29]} 37. Kxc3 {[%emt 0:01:16]} Rg6 {[%emt 0:00:06]} 38. Kd3 {
[%emt 0:03:12]} Rxg4 {[%emt 0:00:06]} 39. e4 {[%emt 0:00:38]} f5 {[%emt 0:04:
28]} 40. Rc7+ {[%emt 0:04:36]} Kf6 {[%emt 0:01:41]} 41. Rc6+ {[%emt 0:50:36]}
Kg7 {[%emt 0:51:02]} 42. exf5 {[%emt 0:01:10]} Ra4 {[%emt 0:00:54]} 43. Rg6+ {
[%emt 0:00:56]} Kf7 {[%emt 0:00:56]} 44. Rxh6 {[%emt 0:00:05]} Rxa2 {[%emt 0:
00:03]} 45. Ke3 {[%emt 0:00:06]} Ra4 {[%emt 0:06:32]} 46. Kxf3 {[%emt 0:00:48]}
Rb4 {[%emt 0:00:55]} 47. Kg3 {[%emt 0:00:47]} a5 {[%emt 0:00:25]} 48. Ra6 {
[%emt 0:00:42]} a4 {[%emt 0:00:10]} 49. h5 {[%emt 0:02:18]} Kg7 {[%emt 0:00:24]
} 50. f4 {[%emt 0:02:49]} Rb1 {[%emt 0:04:20]} 51. f6+ {[%emt 0:00:48]} Kf7 {
[%emt 0:00:14]} 52. Kg4 {[%emt 0:01:03]} Rb5 {[%emt 0:01:17]} 53. h6 {[%emt 0:
03:10]} Kg6 {[%emt 0:01:16]} 54. f7+ {[%emt 0:05:31]} Kxf7 {[%emt 0:00:06]} 55.
Ra7+ {[%emt 0:01:03]} Kg6 {[%emt 0:01:47]} 56. h7 {[%emt 0:00:00]} Rb8 {
[%emt 0:00:00]} 57. f5+ {[%emt 0:00:00]} Kh6 {[%emt 0:00:00]} 58. f6 {[%emt 0:
00:00]} a3 {[%emt 0:00:00]} 59. Kf5 {[%emt 0:00:00]} Rb5+ {[%emt 0:00:00]} 60.
Ke6 {[%emt 0:00:00]} Rb8 {[%emt 0:00:00]} 61. f7 {[%emt 0:00:00]} a2 {[%emt 0:
00:00]} 62. h8=Q+ {[%emt 0:00:00]} Rxh8 {[%emt 0:00:00]} 63. Ke7 {[%emt 0:00:
00]} Kg6 {[%emt 0:00:00]} 64. Rxa2 {[%emt 0:00:00]} 1-0

[Event "FIDE Womens Grand Swiss 2021"]
[Site "Riga"]
[Date "2021.11.07"]
[Round "11.15"]
[White "Kamalidenova, Meruert"]
[Black "Socko, Monika"]
[Result "1/2-1/2"]
[ECO "C18"]
[WhiteElo "2339"]
[BlackElo "2397"]
[Annotator "NA RC"]
[PlyCount "61"]
[EventDate "2021.10.27"]
[EventType "swiss"]
[EventCountry "LAT"]
[Tiebreak "Cut1 Buchholz+Sonneborn-Berger (Swiss)"]
[SourceTitle "playchess.com"]
[Source "ChessBase"]
[SourceQuality "1"]
[TimeControl "40/6000+30:20/3000+30:900+30"]

1. e4 {[%emt 0:10:07]} e6 {[%emt 0:10:04]} 2. d4 {[%emt 0:00:09]} d5 {[%emt 0:
00:03]} 3. Nc3 {[%emt 0:00:08]} Bb4 {[%emt 0:00:06]} 4. e5 {[%emt 0:00:35]} c5
{[%emt 0:00:05]} 5. a3 {[%emt 0:00:29]} Ba5 {[%emt 0:00:05]} 6. b4 {[%emt 0:01:
02]} cxd4 {[%emt 0:00:06]} 7. Nb5 {[%emt 0:00:25]} Bc7 {[%emt 0:00:04]} 8. f4 {
[%emt 0:01:06]} Bd7 {[%emt 0:00:06]} 9. Nxc7+ {[%emt 0:01:53]} Qxc7 {[%emt 0:
00:03]} 10. Nf3 {[%emt 0:03:08]} Ba4 {[%emt 0:00:27]} 11. Bd3 {[%emt 0:00:52]}
Ne7 {[%emt 0:00:48]} 12. O-O {[%emt 0:02:32]} Qb6 {[%emt 0:00:22]} 13. Kh1 {
[%emt 0:03:36]} Bb5 {[%emt 0:05:38]} 14. Nxd4 {[%emt 0:05:26]} Bxd3 {[%emt 0:
00:41]} 15. Qxd3 {[%emt 0:00:09]} Nbc6 {[%emt 0:00:41]} 16. Nb5 {[%emt 0:13:29]
} O-O {[%emt 0:01:19]} 17. Be3 {[%emt 0:02:09]} Qd8 {[%emt 0:00:20]} 18. Nd6 {
[%emt 0:05:17]} Qc7 {[%emt 0:08:50]} 19. c4 {[%emt 0:08:30]} dxc4 {[%emt 0:05:
36]} 20. Qxc4 {[%emt 0:04:02]} Nd5 {[%emt 0:00:31]} 21. Bc5 {[%emt 0:03:36]}
Rfd8 {[%emt 0:02:23]} 22. Qe4 {[%emt 0:04:10]} b6 {[%emt 0:04:58]} 23. Bf2 {
[%emt 0:01:37]} Nce7 {[%emt 0:09:40]} 24. Bh4 {[%emt 0:03:28]} Rf8 {[%emt 0:01:
19]} 25. Qd3 {[%emt 0:04:48]} Ng6 {[%emt 0:04:24]} 26. Bg3 {[%emt 0:01:27]} Qc3
{[%emt 0:02:04]} 27. Qe4 {[%emt 0:09:41]} Qe3 {[%emt 0:04:05]} 28. Qc4 {
[%emt 0:02:32]} Qc3 {[%emt 0:02:40]} 29. Qe4 {[%emt 0:05:51]} Qe3 {[%emt 0:00:
40]} 30. Qc4 {[%emt 0:01:04]} Qc3 {[%emt 0:00:07]} 31. Qe4 1/2-1/2

[Event "FIDE Womens Grand Swiss 2021"]
[Site "Riga"]
[Date "2021.11.07"]
[Round "11.16"]
[White "Abdumalik, Zhansaya"]
[Black "Cyfka, Karina"]
[Result "1-0"]
[ECO "C42"]
[WhiteElo "2507"]
[BlackElo "2409"]
[Annotator "RC"]
[PlyCount "63"]
[EventDate "2021.10.27"]
[EventType "swiss"]
[EventCountry "LAT"]
[Tiebreak "Cut1 Buchholz+Sonneborn-Berger (Swiss)"]
[SourceTitle "playchess.com"]
[Source "ChessBase"]
[SourceQuality "1"]
[TimeControl "40/6000+30:20/3000+30:900+30"]

1. e4 {[%emt 0:10:03]} e5 {[%emt 0:10:06]} 2. Nf3 {[%emt 0:00:09]} Nf6 {
[%emt 0:00:07]} 3. Nxe5 {[%emt 0:00:23]} d6 {[%emt 0:00:08]} 4. Nf3 {[%emt 0:
00:07]} Nxe4 {[%emt 0:00:11]} 5. Nc3 {[%emt 0:00:05]} Nxc3 {[%emt 0:00:42]} 6.
dxc3 {[%emt 0:00:28]} Be7 {[%emt 0:00:20]} 7. Be3 {[%emt 0:00:26]} O-O {
[%emt 0:00:48]} 8. Qd2 {[%emt 0:00:08]} Nd7 {[%emt 0:00:50]} 9. O-O-O {[%emt 0:
00:32]} Nf6 {[%emt 0:00:57]} 10. Bd3 {[%emt 0:00:51]} c5 {[%emt 0:01:50]} 11.
Rhe1 {[%emt 0:01:50]} Be6 {[%emt 0:01:53]} 12. Bg5 {[%emt 0:01:07]} d5 {
[%emt 0:05:51]} 13. Qf4 {[%emt 0:01:26]} Re8 {[%emt 0:04:11]} 14. c4 {[%emt 0:
05:39]} d4 {[%emt 0:25:10]} 15. Re5 {[%emt 0:02:25]} b5 {[%emt 0:08:11]} 16.
cxb5 {[%emt 0:21:13]} Qa5 {[%emt 0:08:55]} 17. Rxe6 {[%emt 0:24:49]} fxe6 {
[%emt 0:03:14]} 18. Bc4 {[%emt 0:01:59]} Nd5 {[%emt 0:09:32]} 19. Qe4 {[%emt 0:
01:40]} Bf6 {[%emt 0:03:42]} 20. Rd3 {[%emt 0:08:31]} Qb4 {[%emt 0:07:19]} 21.
Bxd5 {[%emt 0:02:24]} exd5 {[%emt 0:00:19]} 22. Qxd5+ {[%emt 0:00:10]} Kh8 {
[%emt 0:00:05]} 23. Bxf6 {[%emt 0:00:56]} gxf6 {[%emt 0:00:10]} 24. Qf5 {
[%emt 0:06:05]} Kg7 {[%emt 0:03:59]} 25. a3 {[%emt 0:02:39]} Qc4 {[%emt 0:02:
53]} 26. b3 {[%emt 0:02:06]} Qf7 {[%emt 0:00:39]} 27. Qxc5 {[%emt 0:00:27]}
Rac8 {[%emt 0:01:29]} 28. Qxd4 {[%emt 0:00:19]} Rc7 {[%emt 0:00:07]} 29. Kb2 {
[%emt 0:01:57]} Qh5 {[%emt 0:01:13]} 30. Qd6 {[%emt 0:00:42]} Rf7 {[%emt 0:01:
21]} 31. Nd4 {[%emt 0:00:27]} Kh8 {[%emt 0:00:21]} 32. a4 {[%emt 0:00:20]} 1-0

[Event "FIDE Womens Grand Swiss 2021"]
[Site "Riga"]
[Date "2021.11.07"]
[Round "11.17"]
[White "Gunina, Valentina"]
[Black "Buksa, Nataliya"]
[Result "1-0"]
[ECO "D37"]
[WhiteElo "2462"]
[BlackElo "2409"]
[Annotator "RC"]
[PlyCount "81"]
[EventDate "2021.10.27"]
[EventType "swiss"]
[EventCountry "LAT"]
[Tiebreak "Cut1 Buchholz+Sonneborn-Berger (Swiss)"]
[SourceTitle "playchess.com"]
[Source "ChessBase"]
[SourceQuality "1"]
[TimeControl "40/6000+30:20/3000+30:900+30"]

1. d4 {[%emt 0:10:03]} Nf6 {[%emt 0:11:18]} 2. c4 {[%emt 0:00:06]} e6 {[%emt 0:
00:04]} 3. Nf3 {[%emt 0:00:04]} d5 {[%emt 0:00:08]} 4. Nc3 {[%emt 0:00:13]} Be7
{[%emt 0:00:18]} 5. Bf4 {[%emt 0:00:07]} O-O {[%emt 0:00:08]} 6. e3 {[%emt 0:
00:17]} b6 {[%emt 0:00:03]} 7. Bd3 {[%emt 0:00:17]} dxc4 {[%emt 0:00:43]} 8.
Bxc4 {[%emt 0:00:06]} Ba6 {[%emt 0:00:02]} 9. Bxa6 {[%emt 0:00:34]} Nxa6 {
[%emt 0:00:03]} 10. Qa4 {[%emt 0:00:29]} Nb4 {[%emt 0:07:00]} 11. O-O {[%emt 0:
00:52]} Qe8 {[%emt 0:00:08]} 12. Qb3 {[%emt 0:07:28]} c5 {[%emt 0:01:28]} 13.
Rfd1 {[%emt 0:01:15]} Rc8 {[%emt 0:06:59]} 14. dxc5 {[%emt 0:01:21]} Bxc5 {
[%emt 0:00:22]} 15. Be5 {[%emt 0:01:37]} Qc6 {[%emt 0:13:50]} 16. Bxf6 {
[%emt 0:01:38]} gxf6 {[%emt 0:00:02]} 17. a3 {[%emt 0:00:28]} Na6 {[%emt 0:00:
58]} 18. Qc4 {[%emt 0:00:05]} Qb7 {[%emt 0:00:44]} 19. Qh4 {[%emt 0:02:04]} Be7
{[%emt 0:11:55]} 20. Ne4 {[%emt 0:01:39]} Kg7 {[%emt 0:00:02]} 21. Ng3 {
[%emt 0:00:23]} f5 {[%emt 0:23:26]} 22. Nh5+ {[%emt 0:04:02]} Kh8 {[%emt 0:00:
02]} 23. Nf6 {[%emt 0:08:26]} Bxf6 {[%emt 0:00:05]} 24. Qxf6+ {[%emt 0:00:03]}
Kg8 {[%emt 0:00:03]} 25. b4 {[%emt 0:02:20]} Rfe8 {[%emt 0:03:39]} 26. Qg5+ {
[%emt 0:01:55]} Kh8 {[%emt 0:01:21]} 27. Ne5 {[%emt 0:00:36]} Qe7 {[%emt 0:01:
33]} 28. Rd7 {[%emt 0:02:53]} Qxg5 {[%emt 0:01:41]} 29. Nxf7+ {[%emt 0:00:05]}
Kg7 {[%emt 0:01:12]} 30. Nxg5+ {[%emt 0:00:06]} Kg6 {[%emt 0:00:03]} 31. h4 {
[%emt 0:00:46]} Rc7 {[%emt 0:01:02]} 32. Rad1 {[%emt 0:00:39]} Re7 {[%emt 0:00:
28]} 33. Rd8 {[%emt 0:01:15]} Rc3 {[%emt 0:01:19]} 34. Rg8+ {[%emt 0:00:53]}
Kh5 {[%emt 0:01:16]} 35. Rd6 {[%emt 0:00:28]} Nc7 {[%emt 0:03:42]} 36. e4 {
[%emt 0:01:25]} Rxa3 {[%emt 0:08:24]} 37. exf5 {[%emt 0:00:31]} exf5 {[%emt 0:
00:05]} 38. g3 {[%emt 0:00:32]} Kg4 {[%emt 0:06:12]} 39. Kg2 {[%emt 0:00:38]}
f4 {[%emt 0:00:14]} 40. Nf3+ {[%emt 0:00:34]} Kf5 {[%emt 0:00:05]} 41. Rg5+ {
[%emt 0:50:07]} 1-0

[Event "FIDE Womens Grand Swiss 2021"]
[Site "Riga"]
[Date "2021.11.07"]
[Round "11.18"]
[White "Houska, Jovanka"]
[Black "Sargsyan, Anna M."]
[Result "0-1"]
[ECO "D10"]
[WhiteElo "2381"]
[BlackElo "2402"]
[Annotator "RC"]
[PlyCount "124"]
[EventDate "2021.10.27"]
[EventType "swiss"]
[EventCountry "LAT"]
[Tiebreak "Cut1 Buchholz+Sonneborn-Berger (Swiss)"]
[SourceTitle "playchess.com"]
[Source "ChessBase"]
[SourceQuality "1"]
[TimeControl "40/6000+30:20/3000+30:900+30"]

1. d4 {[%emt 0:10:03]} d5 {[%emt 0:10:07]} 2. c4 {[%emt 0:00:05]} c6 {[%emt 0:
00:07]} 3. Nc3 {[%emt 0:00:04]} Nf6 {[%emt 0:00:07]} 4. e3 {[%emt 0:00:04]} Bf5
{[%emt 0:00:12]} 5. cxd5 {[%emt 0:00:17]} cxd5 {[%emt 0:00:07]} 6. Qb3 {
[%emt 0:00:04]} b6 {[%emt 0:02:24]} 7. Bb5+ {[%emt 0:05:19]} Nbd7 {[%emt 0:00:
06]} 8. Nxd5 {[%emt 0:09:03]} Rc8 {[%emt 0:00:09]} 9. Nc3 {[%emt 0:04:35]} e6 {
[%emt 0:00:08]} 10. Nf3 {[%emt 0:09:42]} Bd6 {[%emt 0:00:10]} 11. Nd2 {[%emt 0:
05:33]} O-O {[%emt 0:07:11]} 12. e4 {[%emt 0:05:19]} Rxc3 {[%emt 0:00:13]} 13.
Qxc3 {[%emt 0:02:07]} Nxe4 {[%emt 0:00:08]} 14. Nxe4 {[%emt 0:04:07]} Bxe4 {
[%emt 0:00:07]} 15. O-O {[%emt 0:11:55]} Nf6 {[%emt 0:01:36]} 16. h3 {[%emt 0:
11:50]} Bb8 {[%emt 0:01:18]} 17. Be2 {[%emt 0:05:40]} Nd5 {[%emt 0:09:54]} 18.
Qb3 {[%emt 0:03:55]} Qf6 {[%emt 0:07:30]} 19. Bf3 {[%emt 0:02:24]} Qxd4 {
[%emt 0:02:54]} 20. Bxe4 {[%emt 0:00:16]} Qxe4 {[%emt 0:00:06]} 21. Bd2 {
[%emt 0:01:17]} Qe5 {[%emt 0:03:09]} 22. g3 {[%emt 0:00:11]} Bd6 {[%emt 0:00:
09]} 23. Rfe1 {[%emt 0:03:41]} Qf6 {[%emt 0:02:26]} 24. Rac1 {[%emt 0:02:04]}
a5 {[%emt 0:01:11]} 25. Kg2 {[%emt 0:04:11]} Bc5 {[%emt 0:03:19]} 26. Re2 {
[%emt 0:00:05]} h6 {[%emt 0:00:53]} 27. Bxa5 {[%emt 0:02:30]} Bd4 {[%emt 0:03:
28]} 28. Be1 {[%emt 0:05:09]} Qg5 {[%emt 0:01:28]} 29. Bd2 {[%emt 0:00:07]} Qf6
{[%emt 0:00:04]} 30. Rc2 {[%emt 0:00:23]} Qg6 {[%emt 0:00:07]} 31. Bc1 {
[%emt 0:00:46]} Rd8 {[%emt 0:00:41]} 32. a3 {[%emt 0:01:07]} e5 {[%emt 0:01:27]
} 33. Qb5 {[%emt 0:01:27]} e4 {[%emt 0:01:34]} 34. Rc4 {[%emt 0:01:34]} Qf6 {
[%emt 0:06:03]} 35. Qb3 {[%emt 0:00:00]} g5 {[%emt 0:00:11]} 36. Bd2 {[%emt 0:
00:20]} b5 {[%emt 0:02:30]} 37. Rc2 {[%emt 0:00:51]} Qf5 {[%emt 0:00:15]} 38.
Ba5 {[%emt 0:00:37]} Rd6 {[%emt 0:01:45]} 39. f3 {[%emt 0:00:32]} Ne3+ {
[%emt 0:30:09]} 40. Rxe3 {[%emt 0:00:16]} Bxe3 {[%emt 0:00:04]} 41. fxe4 {
[%emt 0:50:15]} Qxe4+ {[%emt 0:50:06]} 42. Kh2 {[%emt 0:00:02]} Rd3 {[%emt 0:
01:17]} 43. Rc8+ {[%emt 0:00:00]} Kg7 {[%emt 0:00:00]} 44. Qc2 {[%emt 0:00:00]}
Bf4 {[%emt 0:00:00]} 45. Bc3+ {[%emt 0:00:00]} f6 {[%emt 0:00:00]} 46. Be1 {
[%emt 0:00:00]} Be5 {[%emt 0:00:00]} 47. Rd8 {[%emt 0:00:00]} Re3 {[%emt 0:00:
00]} 48. Qxe4 {[%emt 0:00:00]} Rxe4 {[%emt 0:00:00]} 49. Bc3 {[%emt 0:00:00]}
Re2+ {[%emt 0:00:00]} 50. Kg1 {[%emt 0:00:00]} Bxg3 {[%emt 0:02:29]} 51. Rd5 {
[%emt 0:01:45]} Kg6 {[%emt 0:03:38]} 52. Rxb5 {[%emt 0:00:11]} f5 {[%emt 0:00:
16]} 53. Rb6+ {[%emt 0:00:12]} Kh5 {[%emt 0:00:32]} 54. Kf1 {[%emt 0:03:15]}
Rf2+ {[%emt 0:02:05]} 55. Kg1 {[%emt 0:00:16]} Rc2 {[%emt 0:00:35]} 56. Rf6 {
[%emt 0:00:46]} f4 {[%emt 0:00:40]} 57. a4 {[%emt 0:01:36]} Bf2+ {[%emt 0:04:
19]} 58. Kf1 {[%emt 0:00:07]} Kh4 {[%emt 0:00:14]} 59. Rxh6+ {[%emt 0:00:45]}
Kg3 {[%emt 0:00:02]} 60. Rd6 {[%emt 0:01:16]} Kf3 {[%emt 0:00:59]} 61. Bd2 {
[%emt 0:15:26]} Rxb2 {[%emt 0:15:39]} 62. Rd3+ {[%emt 0:00:36]} Be3 {[%emt 0:
01:04]} 0-1